[Event "*** Titled Tuesday Blitz"]
[Site "Chess.com"]
[Date "2020.10.20"]
[Round "7"]
[White "Sn00pPawn"]
[Black "LubovMarkelova"]
[Result "1-0"]
[WhiteElo "2018"]
[BlackElo "2233"]
[TimeControl "180+1"]
[EndTime "11:20:16 PDT"]
[Termination "Sn00pPawn won by resignation"]

1. e4 {[%clk 0:03:00.9]} 1... e6 {[%clk 0:03:00]} 2. d4 {[%clk 0:03:00.2]} 2...
d5 {[%clk 0:03:00.7]} 3. Nc3 {[%clk 0:02:58.8]} 3... Nf6 {[%clk 0:03:00.3]} 4.
Bg5 {[%clk 0:02:53.7]} 4... dxe4 {[%clk 0:02:58]} 5. Nxe4 {[%clk 0:02:53.6]}
5... Nbd7 {[%clk 0:02:58.6]} 6. Nxf6+ {[%clk 0:02:52.3]} 6... Nxf6 {[%clk
0:02:57.5]} 7. Nf3 {[%clk 0:02:51.6]} 7... h6 {[%clk 0:02:56.5]} 8. Be3 {[%clk
0:02:52]} 8... Nd5 {[%clk 0:02:55.6]} 9. Qd2 {[%clk 0:02:46.5]} 9... c5 {[%clk
0:02:48.4]} 10. O-O-O {[%clk 0:02:34.8]} 10... Qb6 {[%clk 0:02:36.5]} 11. dxc5
{[%clk 0:02:13.2]} 11... Bxc5 {[%clk 0:02:35.2]} 12. Bxc5 {[%clk 0:02:14.1]}
12... Qxc5 {[%clk 0:02:35]} 13. Qd4 {[%clk 0:02:15]} 13... Qxd4 {[%clk
0:02:33.8]} 14. Nxd4 {[%clk 0:02:15.8]} 14... Bd7 {[%clk 0:02:33.7]} 15. g3
{[%clk 0:01:56.4]} 15... O-O-O {[%clk 0:02:30.6]} 16. Bg2 {[%clk 0:01:50]} 16...
Ba4 {[%clk 0:02:28.4]} 17. b3 {[%clk 0:01:37.5]} 17... Nc3 {[%clk 0:02:17.2]}
18. Rd3 {[%clk 0:01:14]} 18... Nxa2+ {[%clk 0:01:55.1]} 19. Kb2 {[%clk
0:01:01.4]} 19... Nb4 {[%clk 0:01:55.2]} 20. Rc3+ {[%clk 0:00:58.5]} 20... Kb8
{[%clk 0:01:53.2]} 21. Rc4 {[%clk 0:00:58.2]} 21... Bc6 {[%clk 0:01:43.8]} 22.
Nxc6+ {[%clk 0:00:53.8]} 22... Nxc6 {[%clk 0:01:44]} 23. Bxc6 {[%clk 0:00:54.3]}
23... bxc6 {[%clk 0:01:44.2]} 24. Rxc6 {[%clk 0:00:44.4]} 24... Kb7 {[%clk
0:01:43.1]} 25. Rc3 {[%clk 0:00:40.5]} 25... Rd2 {[%clk 0:01:42.5]} 26. Rf1
{[%clk 0:00:36.4]} 26... Rhd8 {[%clk 0:01:43]} 27. Kc1 {[%clk 0:00:36.4]} 27...
Re2 {[%clk 0:01:41]} 28. Re3 {[%clk 0:00:34.5]} 28... Red2 {[%clk 0:01:32.3]}
29. Ree1 {[%clk 0:00:30.6]} 29... Kc6 {[%clk 0:01:22.6]} 30. Rd1 {[%clk
0:00:27.7]} 30... R2d5 {[%clk 0:01:18.5]} 31. c4 {[%clk 0:00:23.2]} 31... Rxd1+
{[%clk 0:01:16.5]} 32. Rxd1 {[%clk 0:00:23]} 32... Rxd1+ {[%clk 0:01:16.5]} 33.
Kxd1 {[%clk 0:00:23.9]} 33... Kc5 {[%clk 0:01:16.8]} 34. Kc2 {[%clk 0:00:22.8]}
34... Kd4 {[%clk 0:01:14]} 35. f3 {[%clk 0:00:17.8]} 35... e5 {[%clk 0:01:11.5]}
36. Kd2 {[%clk 0:00:17.2]} 36... f5 {[%clk 0:01:11.7]} 37. h4 {[%clk 0:00:16.5]}
37... g5 {[%clk 0:01:11.1]} 38. hxg5 {[%clk 0:00:16]} 38... hxg5 {[%clk
0:01:11.4]} 39. Ke2 {[%clk 0:00:16.1]} 39... a5 {[%clk 0:01:08.9]} 40. Kd2
{[%clk 0:00:15.8]} 40... a4 {[%clk 0:00:41.4]} 41. bxa4 {[%clk 0:00:16.7]} 41...
Kxc4 {[%clk 0:00:41.8]} 42. g4 {[%clk 0:00:16.8]} 42... fxg4 {[%clk 0:00:23.1]}
43. fxg4 {[%clk 0:00:17.7]} 43... Kb4 {[%clk 0:00:23.6]} 44. Kd3 {[%clk
0:00:17.6]} 44... Kxa4 {[%clk 0:00:24]} 45. Ke4 {[%clk 0:00:18.5]} 45... Kb5
{[%clk 0:00:23.3]} 46. Kxe5 {[%clk 0:00:19.4]} 46... Kc5 {[%clk 0:00:23.7]} 47.
Kf5 {[%clk 0:00:20.3]} 47... Kd6 {[%clk 0:00:22.9]} 48. Kxg5 {[%clk 0:00:21.2]}
48... Ke6 {[%clk 0:00:23]} 49. Kg6 {[%clk 0:00:21.7]} 49... Ke5 {[%clk
0:00:23.1]} 50. g5 {[%clk 0:00:21.7]} 50... Kf4 {[%clk 0:00:24]} 51. Kf6 {[%clk
0:00:21.8]} 1-0

[Event "*** Titled Tuesday Blitz"]
[Site "Chess.com"]
[Date "2020.10.20"]
[Round "7"]
[White "LittlePeasant"]
[Black "Msb2"]
[Result "0-1"]
[WhiteElo "2806"]
[BlackElo "2931"]
[TimeControl "180+1"]
[EndTime "11:20:17 PDT"]
[Termination "Msb2 won by resignation"]

1. Nf3 {[%clk 0:03:00.9]} 1... d5 {[%clk 0:02:59.3]} 2. c4 {[%clk 0:03:01.2]}
2... d4 {[%clk 0:02:59.5]} 3. e3 {[%clk 0:03:01.5]} 3... c5 {[%clk 0:03:00.2]}
4. g3 {[%clk 0:02:55.4]} 4... Nc6 {[%clk 0:02:59.8]} 5. exd4 {[%clk 0:02:55]}
5... cxd4 {[%clk 0:02:59.7]} 6. Bg2 {[%clk 0:02:55.3]} 6... e5 {[%clk 0:03:00]}
7. O-O {[%clk 0:02:55.8]} 7... Nf6 {[%clk 0:03:00.5]} 8. Re1 {[%clk 0:02:56.3]}
8... Bd6 {[%clk 0:03:00.2]} 9. b4 {[%clk 0:02:56.5]} 9... Nxb4 {[%clk
0:02:54.4]} 10. Nxe5 {[%clk 0:02:35.3]} 10... O-O {[%clk 0:02:52.8]} 11. d3
{[%clk 0:02:35.7]} 11... Re8 {[%clk 0:02:51]} 12. Bf4 {[%clk 0:02:34.9]} 12...
Qc7 {[%clk 0:02:38.4]} 13. a3 {[%clk 0:02:13.5]} 13... Na6 {[%clk 0:02:30.4]}
14. Nf3 {[%clk 0:01:53.4]} 14... Rxe1+ {[%clk 0:02:25.5]} 15. Qxe1 {[%clk
0:01:54.3]} 15... Bxf4 {[%clk 0:02:25.2]} 16. gxf4 {[%clk 0:01:55.2]} 16... Qxf4
{[%clk 0:02:25.5]} 17. Nbd2 {[%clk 0:01:51.5]} 17... Be6 {[%clk 0:02:05.5]} 18.
Nb3 {[%clk 0:01:44.2]} 18... Rd8 {[%clk 0:01:48.9]} 19. Qe5 {[%clk 0:01:43.3]}
19... Qxe5 {[%clk 0:01:05.6]} 20. Nxe5 {[%clk 0:01:44.2]} 20... Nd7 {[%clk
0:01:04.8]} 21. Nf3 {[%clk 0:01:22.9]} 21... Ndc5 {[%clk 0:01:04.3]} 22. Nbxd4
{[%clk 0:00:56.8]} 22... Nxd3 {[%clk 0:01:00.6]} 23. Nxe6 {[%clk 0:00:56.3]}
23... fxe6 {[%clk 0:01:01]} 24. Ng5 {[%clk 0:00:57]} 24... Ndc5 {[%clk
0:00:39.6]} 25. Re1 {[%clk 0:00:52.2]} 25... Nc7 {[%clk 0:00:39.6]} 26. Bh3
{[%clk 0:00:47.6]} 26... Rd6 {[%clk 0:00:38.5]} 27. Kg2 {[%clk 0:00:40.9]} 27...
h6 {[%clk 0:00:38.5]} 28. Nf3 {[%clk 0:00:41.2]} 28... b6 {[%clk 0:00:36.8]} 29.
Ne5 {[%clk 0:00:40.9]} 29... Ne8 {[%clk 0:00:35.6]} 30. Bg4 {[%clk 0:00:38.7]}
30... Nf6 {[%clk 0:00:35.8]} 31. Bf3 {[%clk 0:00:39.1]} 31... Nfd7 {[%clk
0:00:35.7]} 32. Nc6 {[%clk 0:00:36.3]} 32... a5 {[%clk 0:00:30.7]} 33. Na7
{[%clk 0:00:34.1]} 33... Kf7 {[%clk 0:00:26.5]} 34. Nb5 {[%clk 0:00:27.9]} 34...
Rd3 {[%clk 0:00:26.7]} 35. Bh5+ {[%clk 0:00:27.2]} 35... Kf6 {[%clk 0:00:23.7]}
36. Bf3 {[%clk 0:00:20.6]} 36... Ne5 {[%clk 0:00:22.8]} 37. Be2 {[%clk 0:00:21]}
37... Rd2 {[%clk 0:00:22.9]} 38. Bf1 {[%clk 0:00:20]} 38... Ned3 {[%clk
0:00:21.7]} 39. Bxd3 {[%clk 0:00:15.9]} 39... Nxd3 {[%clk 0:00:22.6]} 40. Rf1
{[%clk 0:00:06.3]} 40... Nf4+ {[%clk 0:00:21.3]} 41. Kf3 {[%clk 0:00:06.5]}
41... g5 {[%clk 0:00:21.2]} 42. Re1 {[%clk 0:00:05.6]} 42... Rd3+ {[%clk
0:00:16.8]} 43. Re3 {[%clk 0:00:06.1]} 43... Rd1 {[%clk 0:00:12.7]} 44. Nc7
{[%clk 0:00:03]} 44... Kf5 {[%clk 0:00:13.1]} 45. Ne8 {[%clk 0:00:02.7]} 45...
g4+ {[%clk 0:00:13.4]} 46. Kg3 {[%clk 0:00:02.1]} 46... Rg1+ {[%clk 0:00:14.3]}
47. Kh4 {[%clk 0:00:03]} 47... Ng2+ {[%clk 0:00:15.2]} 48. Kh5 {[%clk
0:00:03.9]} 48... Nxe3 {[%clk 0:00:16.1]} 49. fxe3 {[%clk 0:00:04.8]} 0-1

[Event "*** Titled Tuesday Blitz"]
[Site "Chess.com"]
[Date "2020.10.20"]
[Round "7"]
[White "WuinaterJr"]
[Black "abhidabhi"]
[Result "0-1"]
[WhiteElo "2528"]
[BlackElo "2808"]
[TimeControl "180+1"]
[EndTime "11:20:18 PDT"]
[Termination "abhidabhi won by resignation"]

1. d4 {[%clk 0:03:00.9]} 1... Nf6 {[%clk 0:02:59.8]} 2. c4 {[%clk 0:02:59.1]}
2... g6 {[%clk 0:02:58.6]} 3. Nc3 {[%clk 0:02:58.2]} 3... d5 {[%clk 0:02:57.7]}
4. cxd5 {[%clk 0:02:56.6]} 4... Nxd5 {[%clk 0:02:58.6]} 5. e4 {[%clk 0:02:56.5]}
5... Nxc3 {[%clk 0:02:59.2]} 6. bxc3 {[%clk 0:02:57.1]} 6... Bg7 {[%clk
0:02:59.8]} 7. Nf3 {[%clk 0:02:57.2]} 7... c5 {[%clk 0:02:59.5]} 8. Be2 {[%clk
0:02:56.2]} 8... O-O {[%clk 0:02:53]} 9. O-O {[%clk 0:02:55.8]} 9... Nd7 {[%clk
0:02:49.3]} 10. Be3 {[%clk 0:02:54.5]} 10... b6 {[%clk 0:02:47.5]} 11. Qc2
{[%clk 0:02:36.7]} 11... Bb7 {[%clk 0:02:46.5]} 12. d5 {[%clk 0:02:29.2]} 12...
c4 {[%clk 0:02:27.3]} 13. Rfd1 {[%clk 0:02:19.9]} 13... Qc7 {[%clk 0:02:23.7]}
14. Bd4 {[%clk 0:02:18.9]} 14... Rac8 {[%clk 0:02:06.8]} 15. Rab1 {[%clk
0:02:12.5]} 15... Nc5 {[%clk 0:01:57.7]} 16. Bxg7 {[%clk 0:01:57.3]} 16... Kxg7
{[%clk 0:01:57.5]} 17. Rd4 {[%clk 0:01:47.8]} 17... f5 {[%clk 0:01:20.8]} 18. e5
{[%clk 0:01:33.4]} 18... Rfd8 {[%clk 0:01:20.6]} 19. Rbd1 {[%clk 0:01:32.2]}
19... Nd7 {[%clk 0:01:04.5]} 20. Rxc4 {[%clk 0:01:31]} 20... Qb8 {[%clk
0:01:03.5]} 21. Rxc8 {[%clk 0:01:30.8]} 21... Rxc8 {[%clk 0:01:02.2]} 22. e6
{[%clk 0:01:18.3]} 22... Nf6 {[%clk 0:00:59.9]} 23. Qb3 {[%clk 0:01:05.2]} 23...
Qd6 {[%clk 0:00:55.1]} 24. c4 {[%clk 0:01:04.2]} 24... Qc5 {[%clk 0:00:52.3]}
25. Nd4 {[%clk 0:00:53.8]} 25... Ne4 {[%clk 0:00:46.1]} 26. Qe3 {[%clk
0:00:41.6]} 26... Qb4 {[%clk 0:00:45.9]} 27. Rc1 {[%clk 0:00:37.5]} 27... Bxd5
{[%clk 0:00:40.8]} 28. Nxf5+ {[%clk 0:00:36.4]} 28... gxf5 {[%clk 0:00:40.5]}
29. cxd5 {[%clk 0:00:36.7]} 29... Rxc1+ {[%clk 0:00:37.6]} 30. Qxc1 {[%clk
0:00:37.6]} 30... Qd4 {[%clk 0:00:37.7]} 31. Qf4 {[%clk 0:00:23.8]} 31... Qxd5
{[%clk 0:00:37.7]} 32. g4 {[%clk 0:00:22.1]} 32... Qxa2 {[%clk 0:00:34]} 33.
Qe5+ {[%clk 0:00:20.6]} 33... Nf6 {[%clk 0:00:31.9]} 34. g5 {[%clk 0:00:20.6]}
34... Qb1+ {[%clk 0:00:31.2]} 35. Kg2 {[%clk 0:00:20.4]} 35... Qe4+ {[%clk
0:00:31.4]} 36. Qxe4 {[%clk 0:00:20.6]} 36... Nxe4 {[%clk 0:00:31.9]} 37. Bd3
{[%clk 0:00:20.6]} 37... Kg6 {[%clk 0:00:29.3]} 38. f4 {[%clk 0:00:20.7]} 38...
Nc5 {[%clk 0:00:28.1]} 39. Bb5 {[%clk 0:00:21]} 39... Nxe6 {[%clk 0:00:26.7]}
40. Be8+ {[%clk 0:00:21.2]} 40... Kg7 {[%clk 0:00:26.7]} 41. Kf3 {[%clk
0:00:20.8]} 41... a5 {[%clk 0:00:22.2]} 42. Ke3 {[%clk 0:00:20.6]} 42... Nc5
{[%clk 0:00:20.5]} 43. Bb5 {[%clk 0:00:19]} 43... a4 {[%clk 0:00:20]} 44. Bc4
{[%clk 0:00:17.9]} 44... a3 {[%clk 0:00:19.8]} 45. h4 {[%clk 0:00:18.1]} 45...
b5 {[%clk 0:00:20.1]} 46. Bd5 {[%clk 0:00:17.4]} 46... b4 {[%clk 0:00:20.2]} 47.
Kd2 {[%clk 0:00:18.1]} 47... b3 {[%clk 0:00:20.1]} 48. Kc3 {[%clk 0:00:18.1]}
48... b2 {[%clk 0:00:19.9]} 49. Ba2 {[%clk 0:00:16.8]} 49... Ne4+ {[%clk
0:00:19.3]} 50. Kd4 {[%clk 0:00:16.9]} 50... Nd2 {[%clk 0:00:19.5]} 51. Ke5
{[%clk 0:00:16.1]} 51... b1=Q {[%clk 0:00:19.5]} 0-1

[Event "*** Titled Tuesday Blitz"]
[Site "Chess.com"]
[Date "2020.10.20"]
[Round "7"]
[White "GAusal"]
[Black "mr_gustavo"]
[Result "0-1"]
[WhiteElo "2045"]
[BlackElo "2430"]
[TimeControl "180+1"]
[EndTime "11:20:21 PDT"]
[Termination "mr_gustavo won on time"]

1. d4 {[%clk 0:03:00.9]} 1... d5 {[%clk 0:02:59.1]} 2. Bf4 {[%clk 0:02:58.3]}
2... Nf6 {[%clk 0:02:58.4]} 3. e3 {[%clk 0:02:57.5]} 3... e6 {[%clk 0:02:58.6]}
4. Nf3 {[%clk 0:02:57.9]} 4... Bd6 {[%clk 0:02:58.4]} 5. Ne5 {[%clk 0:02:57.4]}
5... O-O {[%clk 0:02:57.2]} 6. Bd3 {[%clk 0:02:56.4]} 6... c5 {[%clk 0:02:57.3]}
7. c3 {[%clk 0:02:56.1]} 7... Qc7 {[%clk 0:02:56.6]} 8. Nd2 {[%clk 0:02:53.4]}
8... Nbd7 {[%clk 0:02:54.1]} 9. Nxd7 {[%clk 0:02:50.3]} 9... Bxd7 {[%clk
0:02:50]} 10. Bxd6 {[%clk 0:02:50.2]} 10... Qxd6 {[%clk 0:02:49.8]} 11. Nf3
{[%clk 0:02:50.5]} 11... Be8 {[%clk 0:02:46]} 12. O-O {[%clk 0:02:49.7]} 12...
Nd7 {[%clk 0:02:45]} 13. a3 {[%clk 0:02:42.7]} 13... e5 {[%clk 0:02:44]} 14.
dxe5 {[%clk 0:02:42.1]} 14... Nxe5 {[%clk 0:02:43.9]} 15. Nxe5 {[%clk
0:02:42.2]} 15... Qxe5 {[%clk 0:02:44.1]} 16. Qf3 {[%clk 0:02:30.7]} 16... Bc6
{[%clk 0:02:39]} 17. Qf5 {[%clk 0:02:27.5]} 17... Qxf5 {[%clk 0:02:38]} 18. Bxf5
{[%clk 0:02:26.7]} 18... Rfe8 {[%clk 0:02:24.7]} 19. Rad1 {[%clk 0:02:24.1]}
19... Rad8 {[%clk 0:02:25.1]} 20. Bc2 {[%clk 0:02:20.6]} 20... b6 {[%clk
0:02:23.2]} 21. Rd2 {[%clk 0:02:20.3]} 21... Rd6 {[%clk 0:02:20.8]} 22. Rfd1
{[%clk 0:02:19.6]} 22... Red8 {[%clk 0:02:21.4]} 23. Kf1 {[%clk 0:02:18.8]}
23... g6 {[%clk 0:02:21.2]} 24. f3 {[%clk 0:02:14.5]} 24... f6 {[%clk
0:02:20.9]} 25. Kf2 {[%clk 0:02:14.6]} 25... Kf7 {[%clk 0:02:21.3]} 26. Bb3
{[%clk 0:02:12.9]} 26... Ke7 {[%clk 0:02:19.6]} 27. Ba2 {[%clk 0:02:06.9]} 27...
a5 {[%clk 0:02:17.9]} 28. g3 {[%clk 0:02:03.9]} 28... b5 {[%clk 0:02:14.3]} 29.
Bb1 {[%clk 0:02:00.8]} 29... R8d7 {[%clk 0:02:13.7]} 30. g4 {[%clk 0:01:58.8]}
30... Kd8 {[%clk 0:02:13.6]} 31. h4 {[%clk 0:01:58.4]} 31... Kc7 {[%clk
0:02:13.3]} 32. Kg3 {[%clk 0:01:52.8]} 32... Kb6 {[%clk 0:02:12.9]} 33. Rh2
{[%clk 0:01:47.6]} 33... c4 {[%clk 0:02:07.7]} 34. Rd4 {[%clk 0:01:45.1]} 34...
Kc5 {[%clk 0:02:07.1]} 35. h5 {[%clk 0:01:44.9]} 35... g5 {[%clk 0:02:06.3]} 36.
Rhd2 {[%clk 0:01:36.4]} 36... h6 {[%clk 0:02:05.6]} 37. Bf5 {[%clk 0:01:35.3]}
37... Rd8 {[%clk 0:01:56.3]} 38. Bg6 {[%clk 0:01:29.9]} 38... b4 {[%clk
0:01:52]} 39. axb4+ {[%clk 0:01:28.9]} 39... axb4 {[%clk 0:01:51.7]} 40. Bf7
{[%clk 0:01:19.2]} 40... bxc3 {[%clk 0:01:40.9]} 41. bxc3 {[%clk 0:01:17.9]}
41... R8d7 {[%clk 0:01:36.1]} 42. Bg6 {[%clk 0:00:58.4]} 42... Rb7 {[%clk
0:01:35.1]} 43. e4 {[%clk 0:00:52]} 43... Rb3 {[%clk 0:01:32.6]} 44. exd5 {[%clk
0:00:49.9]} 44... Rxd5 {[%clk 0:01:30.7]} 45. Bf7 {[%clk 0:00:41.1]} 45... Rxd4
{[%clk 0:01:26.4]} 46. cxd4+ {[%clk 0:00:40.4]} 46... Kb4 {[%clk 0:01:25.5]} 47.
d5 {[%clk 0:00:38.5]} 47... Bd7 {[%clk 0:01:19.4]} 48. Be6 {[%clk 0:00:30.9]}
48... c3 {[%clk 0:01:14.2]} 49. Rd4+ {[%clk 0:00:26]} 49... Kc5 {[%clk 0:01:12]}
50. Rd1 {[%clk 0:00:18.2]} 50... Bxe6 {[%clk 0:00:34.2]} 51. dxe6 {[%clk
0:00:17.3]} 51... Rb8 {[%clk 0:00:34.8]} 52. f4 {[%clk 0:00:07.2]} 52... Kc4
{[%clk 0:00:28.9]} 0-1

[Event "*** Titled Tuesday Blitz"]
[Site "Chess.com"]
[Date "2020.10.20"]
[Round "7"]
[White "cstevens1"]
[Black "gmpeter008"]
[Result "1-0"]
[WhiteElo "2665"]
[BlackElo "2421"]
[TimeControl "180+1"]
[EndTime "11:20:22 PDT"]
[Termination "cstevens1 won by resignation"]

1. e4 {[%clk 0:03:00.9]} 1... e5 {[%clk 0:02:47.2]} 2. Nf3 {[%clk 0:02:59.5]}
2... Nc6 {[%clk 0:02:46.3]} 3. Bb5 {[%clk 0:02:59.4]} 3... Nf6 {[%clk
0:02:44.5]} 4. d3 {[%clk 0:02:59.2]} 4... Bc5 {[%clk 0:02:43.2]} 5. O-O {[%clk
0:02:58.6]} 5... d6 {[%clk 0:02:39.7]} 6. Be3 {[%clk 0:02:56.7]} 6... Bb6 {[%clk
0:02:38.4]} 7. a4 {[%clk 0:02:49]} 7... O-O {[%clk 0:02:36.7]} 8. Bxc6 {[%clk
0:02:45.4]} 8... bxc6 {[%clk 0:02:33.8]} 9. a5 {[%clk 0:02:44.5]} 9... Bxe3
{[%clk 0:02:33.1]} 10. fxe3 {[%clk 0:02:44.7]} 10... Qe7 {[%clk 0:02:29.9]} 11.
Nc3 {[%clk 0:02:25.2]} 11... d5 {[%clk 0:02:22.3]} 12. Ra4 {[%clk 0:02:21.8]}
12... Rb8 {[%clk 0:02:20.3]} 13. Qc1 {[%clk 0:02:20]} 13... Ba6 {[%clk
0:02:00.5]} 14. Nh4 {[%clk 0:02:07.7]} 14... g6 {[%clk 0:01:50]} 15. Nf3 {[%clk
0:01:47.6]} 15... Kg7 {[%clk 0:01:34.2]} 16. h3 {[%clk 0:01:46.6]} 16... Bb5
{[%clk 0:01:25.5]} 17. Nxb5 {[%clk 0:01:04.8]} 17... cxb5 {[%clk 0:01:26.4]} 18.
Ra3 {[%clk 0:01:00]} 18... dxe4 {[%clk 0:01:24.2]} 19. Nd2 {[%clk 0:00:53.6]}
19... exd3 {[%clk 0:01:17.6]} 20. cxd3 {[%clk 0:00:49.3]} 20... Rfd8 {[%clk
0:01:08.1]} 21. Rc3 {[%clk 0:00:42.8]} 21... Nd5 {[%clk 0:01:07.4]} 22. Rc5
{[%clk 0:00:38.5]} 22... Rbc8 {[%clk 0:00:55.5]} 23. Nb3 {[%clk 0:00:32.3]}
23... a6 {[%clk 0:00:51]} 24. Qe1 {[%clk 0:00:24.8]} 24... Qg5 {[%clk
0:00:44.8]} 25. Rf3 {[%clk 0:00:21.2]} 25... Qe7 {[%clk 0:00:37.6]} 26. Kh2
{[%clk 0:00:20.2]} 26... Nf6 {[%clk 0:00:36.8]} 27. e4 {[%clk 0:00:19.2]} 27...
Rd6 {[%clk 0:00:35.9]} 28. Qf2 {[%clk 0:00:18.5]} 28... Rcd8 {[%clk 0:00:34.5]}
29. Nc1 {[%clk 0:00:18.4]} 29... R8d7 {[%clk 0:00:27.8]} 30. b4 {[%clk
0:00:18.5]} 30... Nh5 {[%clk 0:00:27.6]} 31. Qb2 {[%clk 0:00:15.6]} 31... Kg8
{[%clk 0:00:26.7]} 32. Rxe5 {[%clk 0:00:14.6]} 32... Qf8 {[%clk 0:00:23.5]} 33.
Rc5 {[%clk 0:00:14.5]} 33... Qh6 {[%clk 0:00:18.5]} 34. Qf2 {[%clk 0:00:12.1]}
34... Re6 {[%clk 0:00:13.8]} 35. e5 {[%clk 0:00:10.9]} 35... Kg7 {[%clk
0:00:12.8]} 36. d4 {[%clk 0:00:11.1]} 36... Kg8 {[%clk 0:00:12.6]} 37. Nd3
{[%clk 0:00:11.4]} 37... Ng7 {[%clk 0:00:12.6]} 38. d5 {[%clk 0:00:11.4]} 38...
Re8 {[%clk 0:00:12.3]} 39. e6 {[%clk 0:00:11.2]} 39... fxe6 {[%clk 0:00:12.4]}
40. Ne5 {[%clk 0:00:11]} 40... Rxd5 {[%clk 0:00:12]} 41. Rxd5 {[%clk 0:00:10.9]}
41... exd5 {[%clk 0:00:12.9]} 42. Qc5 {[%clk 0:00:09.8]} 42... Nf5 {[%clk
0:00:11.4]} 43. Qxd5+ {[%clk 0:00:08.9]} 43... Kg7 {[%clk 0:00:06.1]} 44. Qf7+
{[%clk 0:00:08.9]} 1-0

[Event "*** Titled Tuesday Blitz"]
[Site "Chess.com"]
[Date "2020.10.20"]
[Round "7"]
[White "queen_iryna"]
[Black "MikeSailer"]
[Result "1-0"]
[WhiteElo "2297"]
[BlackElo "2100"]
[TimeControl "180+1"]
[EndTime "11:20:23 PDT"]
[Termination "queen_iryna won by checkmate"]

1. e4 {[%clk 0:03:00.9]} 1... d5 {[%clk 0:02:59.8]} 2. exd5 {[%clk 0:03:00]}
2... Qxd5 {[%clk 0:03:00.2]} 3. Nc3 {[%clk 0:03:00.2]} 3... Qd6 {[%clk
0:03:00.6]} 4. d4 {[%clk 0:02:59.4]} 4... Nf6 {[%clk 0:03:01.3]} 5. Nb5 {[%clk
0:02:59.2]} 5... Qd8 {[%clk 0:02:50]} 6. c4 {[%clk 0:02:58.8]} 6... a6 {[%clk
0:02:44.6]} 7. Nc3 {[%clk 0:02:58]} 7... Bf5 {[%clk 0:02:40.9]} 8. Nf3 {[%clk
0:02:56.6]} 8... e6 {[%clk 0:02:41]} 9. Be2 {[%clk 0:02:53.4]} 9... Be7 {[%clk
0:02:37]} 10. O-O {[%clk 0:02:53]} 10... O-O {[%clk 0:02:36.2]} 11. h3 {[%clk
0:02:53]} 11... h6 {[%clk 0:02:35.2]} 12. Bf4 {[%clk 0:02:51.5]} 12... Nbd7
{[%clk 0:02:29.8]} 13. Ne5 {[%clk 0:02:47.8]} 13... Nxe5 {[%clk 0:02:28.4]} 14.
Bxe5 {[%clk 0:02:45]} 14... Bd6 {[%clk 0:02:27.7]} 15. Bf3 {[%clk 0:02:44.2]}
15... c6 {[%clk 0:02:26.9]} 16. Qe2 {[%clk 0:02:38.1]} 16... Qc7 {[%clk
0:02:26.2]} 17. Rad1 {[%clk 0:02:32]} 17... Rad8 {[%clk 0:02:25]} 18. Rfe1
{[%clk 0:02:24.7]} 18... Bxe5 {[%clk 0:02:22.8]} 19. dxe5 {[%clk 0:02:24.8]}
19... Rxd1 {[%clk 0:02:09.3]} 20. Rxd1 {[%clk 0:02:25.7]} 20... Nd7 {[%clk
0:02:07.9]} 21. Re1 {[%clk 0:02:17.8]} 21... Nc5 {[%clk 0:02:03.3]} 22. b4
{[%clk 0:02:10.6]} 22... Nd3 {[%clk 0:01:58.3]} 23. Bg4 {[%clk 0:01:49.5]} 23...
Bg6 {[%clk 0:01:34.6]} 24. f4 {[%clk 0:01:20.7]} 24... Nxf4 {[%clk 0:01:23]} 25.
Qe3 {[%clk 0:01:01.1]} 25... Nd3 {[%clk 0:01:17.9]} 26. Re2 {[%clk 0:00:57.7]}
26... Nxb4 {[%clk 0:01:12.6]} 27. Qg3 {[%clk 0:00:51.9]} 27... Rd8 {[%clk
0:01:03.1]} 28. Bxe6 {[%clk 0:00:51.2]} 28... fxe6 {[%clk 0:00:59.2]} 29. Qxg6
{[%clk 0:00:50.4]} 29... Qf7 {[%clk 0:00:59.1]} 30. Qb1 {[%clk 0:00:46.8]} 30...
Nd3 {[%clk 0:00:54.1]} 31. Ne4 {[%clk 0:00:37.4]} 31... Rd4 {[%clk 0:00:45.5]}
32. Nd6 {[%clk 0:00:26.9]} 32... Qf4 {[%clk 0:00:38.2]} 33. Qxb7 {[%clk
0:00:24.4]} 33... Qc1+ {[%clk 0:00:30.5]} 34. Kh2 {[%clk 0:00:23.8]} 34... Qf4+
{[%clk 0:00:24.6]} 35. g3 {[%clk 0:00:23.9]} 35... Qf3 {[%clk 0:00:21.9]} 36.
Qc8+ {[%clk 0:00:23.6]} 36... Kh7 {[%clk 0:00:20.7]} 37. Rg2 {[%clk 0:00:22.7]}
37... Ne1 {[%clk 0:00:16.9]} 38. Rb2 {[%clk 0:00:22.3]} 38... Rd3 {[%clk
0:00:10.5]} 39. Qxe6 {[%clk 0:00:14.5]} 39... Qxg3+ {[%clk 0:00:10.4]} 40. Kh1
{[%clk 0:00:14.8]} 40... Qf3+ {[%clk 0:00:08.9]} 41. Kh2 {[%clk 0:00:14.3]}
41... Qf4+ {[%clk 0:00:06.7]} 42. Kh1 {[%clk 0:00:13.8]} 42... Qf3+ {[%clk
0:00:04.6]} 43. Kh2 {[%clk 0:00:13.1]} 43... Qe3 {[%clk 0:00:04.3]} 44. Qf5+
{[%clk 0:00:11.9]} 44... Kh8 {[%clk 0:00:04.4]} 45. Rb8# {[%clk 0:00:11.8]} 1-0